bitfinex-derivatives/quotes_SOLF0:USTF0_20250216
["timestamp","ask_amount","ask_price","bid_price","bid_amount"]
[1739715874234,85.63218791,190.11,190.01,1.65330511]
[1739715874443,1.31490064,190.1,190.01,1.65330511]
[1739715874637,3.76407545,190.1,190.01,1.65330511]
[1739715875035,85.63218791,190.11,190.01,1.65330511]
[1739715875235,0.0331233,190.07,190.01,1.65330511]
[1739715876038,0.0331233,190.07,190.04,5.2611]
[1739715877038,0.0331233,190.07,190.02,1.6434]
[1739715877437,0.0331233,190.07,190.04,5.261]
[1739715877739,0.0331233,190.07,190.02,1.6434]
[1739715878539,278.63218791,190.13,190.02,1.6434]
[1739715878840,1.31484855,190.12,190.05,5.2607]
[1739715879041,5.07733214,190.11,190.02,1.6434]
[1739715879231,1.31484855,190.1,190.02,1.6434]
[1739715879437,3.76248359,190.11,190.05,5.2608]
[1739715879739,0.03983889,190.08,190.05,5.2608]
[1739715881340,0.03983889,190.08,190.04,0.04008313]
[1739715881539,193.0,190.13,190.04,0.04008313]
[1739715881743,1.31478695,190.12,190.04,0.04008313]
[1739715881944,193.0,190.13,190.04,0.04008313]
[1739715882141,1.31468461,190.12,190.07,5.2602]
[1739715882441,193.0,190.13,190.02,1.6434]
[1739715882641,193.0,190.13,190.09,5.2596]
[1739715883036,193.03876715,190.13,190.09,5.2596]
[1739715883839,15.79,190.11,189.79,154.86450617]
[1739715884039,15.79,190.03,189.8,146.95975569]
[1739715884237,15.79,190.01,189.81,0.96673412]
[1739715884435,5.263,189.98,189.85,5.2663]
[1739715884638,5.263,189.98,189.86,1.5887]
[1739715885038,0.03393737,189.94,189.9,0.04007676]
[1739715888944,0.03393737,189.94,189.9,5.30517676]
[1739715889745,0.03393737,189.94,189.9,0.04007676]
[1739715890140,0.03393737,189.94,189.8,0.96714155]
[1739715890347,15.79,189.96,189.8,0.96714155]
[1739715890546,15.79,189.96,189.67,4.8378]
[1739715890547,1.31607552,189.95,189.67,4.8378]
[1739715890747,1.31607552,189.94,189.67,4.8378]
[1739715890948,21.0538,189.95,189.81,5.2676]
[1739715891146,5.36014748,189.93,189.67,4.8378]
[1739715891345,0.03494982,189.89,189.85,0.03699535]
[1739715894254,85.53633481,190.0,189.85,0.03699535]
[1739715894454,85.53633481,190.0,189.98,5.2629]
[1739715894749,85.53633481,190.02,189.95,118.1]
[1739715894948,85.53633481,190.02,189.96,5.2632]
[1739715895546,0.03437293,190.01,189.97,0.03916638]
[1739715895748,0.03437293,190.01,189.97,5.30226638]
[1739715896052,0.03437293,190.01,189.97,0.03916638]
[1739715896355,0.03437293,190.01,189.98,5.2629]
[1739715896555,0.03437293,190.01,189.97,0.03916638]
[1739715898957,0.03437293,190.01,189.99,5.2623]
[1739715899453,0.03437293,190.01,189.97,0.03916638]
[1739715899763,0.03437293,190.01,190.0,5.2623]
[1739715900055,0.03437293,190.01,189.97,0.03916638]
[1739715900658,0.03437293,190.01,190.0,5.2623]
[1739715902454,0.03437293,190.01,190.0,5.2623]
[1739715903949,0.03437293,190.01,189.97,0.03916638]
[1739715904549,0.03437293,190.01,189.98,5.2626]
[1739715904755,0.03437293,190.01,189.97,0.03916638]
[1739715910662,5.29647293,190.01,189.97,0.03916638]
[1739715911862,560.05570012,190.0,189.73,118.08]
[1739715912158,5.266,189.87,189.77,5.2685]
[1739715912365,31.58,189.96,189.78,0.96733081]
[1739715912664,1.6529,189.86,189.73,118.08]
[1739715912865,5.2673,189.82,189.74,0.96764399]
[1739715913061,5.2673,189.82,189.78,0.03640036]
[1739715913262,0.03385125,189.8,189.78,0.03640036]
[1739715913767,0.03385125,189.8,189.71,0.96771434]
[1739715913965,6.81,189.85,189.72,0.96771434]
[1739715914166,456.58,189.84,189.55,118.08]
[1739715914467,31.58,189.75,189.59,5.2736]
[1739715914768,0.033702,189.69,189.65,0.03513535]
[1739715915066,1.6529,189.74,189.54,0.96819195]
[1739715915264,0.03701641,189.69,189.65,0.03613321]
[1739715916858,0.03701641,189.69,189.67,5.2713]
[1739715918160,1.641e-05,189.69,189.67,5.2713]
[1739715921866,1.641e-05,189.69,189.68,5.2712]
[1739715924270,85.53633481,189.94,189.68,6.23903401]
[1739715924271,101.32633481,189.94,189.68,6.23903401]
[1739715924470,1.5568,189.93,189.69,2.50543401]
[1739715924671,1.5568,189.93,189.7,0.96783401]
[1739715924866,15.79,189.9,189.7,2.53413401]
[1739715925074,15.79,189.9,189.71,0.96783401]
[1739715925266,31.58,189.9,189.77,5.2685]
[1739715925463,0.0335222,189.82,189.79,0.03584242]
[1739715925666,15.79,189.88,189.69,1.5376]
[1739715925864,15.79,189.88,189.72,5.2701]
[1739715926275,31.58,189.88,189.72,5.2701]
[1739715926973,0.03890565,189.82,189.78,0.03916191]
[1739715930377,0.03890565,189.82,189.68,5.271]
[1739715930378,15.79,189.81,189.68,5.271]
[1739715930573,109.58,189.8,189.68,5.271]
[1739715930781,109.58,189.79,189.61,1.5312]
[1739715931082,109.58,189.79,189.67,5.2714]
[1739715931572,0.03419383,189.75,189.71,0.03393324]
[1739715932077,0.03419383,189.75,189.62,0.96810855]
[1739715932276,15.79,189.75,189.62,5.2726]
[1739715933080,125.37,189.79,189.57,3.1042]
[1739715933276,0.03425219,189.7,189.57,3.1042]
[1739715933479,0.03425219,189.7,189.61,0.96818893]
[1739715933878,0.03425219,189.7,189.64,5.2721]
[1739715934175,0.03425219,189.7,189.57,3.1042]
[1739715934381,0.03425219,189.7,189.64,5.2721]
[1739715934582,0.03425219,189.7,189.65,0.96819423]
[1739715934781,0.03425219,189.7,189.61,0.96819423]
[1739715934982,0.03425219,189.7,189.57,3.1042]
[1739715935177,0.03425219,189.7,189.61,0.96819247]
[1739715935883,0.03425219,189.7,189.62,5.2728]
[1739715936274,126.9738,189.76,189.63,0.96832208]
[1739715936275,0.03802181,189.68,189.63,0.96832208]
[1739715936480,0.03802181,189.68,189.64,0.96832208]
[1739715936676,0.03802181,189.68,189.58,0.96832208]
[1739715936881,0.03802181,189.68,189.59,0.9683104]
[1739715937075,0.03802181,189.68,189.61,5.2731]
[1739715937281,0.03802181,189.68,189.62,0.9683104]
[1739715938283,0.03802181,189.68,189.61,5.2731]
[1739715938483,0.03802181,189.68,189.62,0.96836266]
[1739715939685,0.03802181,189.68,189.61,5.2731]
[1739715939882,0.03802181,189.68,189.57,3.1042]
[1739715940385,0.03802181,189.68,189.58,0.96812378]
[1739715940585,0.03802181,189.68,189.63,5.2725]
[1739715940781,0.03802181,189.68,189.58,0.96812378]
[1739715940782,0.03802181,189.68,189.57,3.1042]
[1739715941679,1.57032181,189.68,189.58,5.2739]
[1739715942383,1.57032181,189.68,189.59,5.2734]
[1739715942584,1.57032181,189.68,189.57,3.1042]
[1739715942784,1.57032181,189.68,189.59,5.2735]
[1739715942984,1.57032181,189.68,189.57,3.1042]
[1739715943385,1.57032181,189.68,189.59,5.2735]
[1739715943584,1.57032181,189.68,189.57,3.1042]
[1739715943988,1.57032181,189.68,189.59,5.2736]
[1739715944288,1.57032181,189.68,189.57,3.1042]
[1739715944987,0.03802181,189.68,189.57,3.1042]
[1739715946191,0.03802181,189.68,189.58,0.96832197]
[1739715946481,0.03802181,189.68,189.66,5.2717]
[1739715950389,0.03802181,189.68,189.67,5.2715]
[1739715950581,0.03802181,189.68,189.67,6.23961646]
[1739715950787,0.03802181,189.68,189.67,5.2715]
[1739715951493,0.03802181,189.68,189.67,6.23960507]
[1739715951888,0.03802181,189.68,189.67,5.2715]
[1739715953893,107.73108793,189.75,189.67,0.96806932]
[1739715954189,107.73108793,189.75,189.68,0.96806932]
[1739715954493,107.73108793,189.74,189.69,0.96806932]
[1739715954689,107.73108793,189.74,189.6,0.96806932]
[1739715954894,0.03586116,189.73,189.72,5.2698]
[1739715955289,107.76611605,189.74,189.71,0.03802181]
[1739715955491,107.73108793,189.74,189.63,0.96799468]
[1739715955697,0.03333017,189.74,189.71,0.03652198]
[1739715955993,0.03333017,189.74,189.63,0.96799468]
[1739715956185,0.03333017,189.74,189.73,5.2698]
[1739715958584,3.017e-05,189.74,189.73,5.2698]
[1739715960093,3.017e-05,189.74,189.73,6.9297]
[1739715961992,3.017e-05,189.74,189.72,0.03459294]
[1739715965499,3.017e-05,189.74,189.72,5.30449294]
[1739715965694,3.017e-05,189.74,189.72,0.03459294]
[1739715966199,3.017e-05,189.74,189.73,5.2698]
[1739715967000,3.017e-05,189.74,189.72,0.03459294]
[1739715968198,3.017e-05,189.74,189.59,3.2792]
[1739715968491,1.6765,189.75,189.6,0.96831871]
[1739715968699,6.58693778,189.74,189.6,0.96831871]
[1739715968998,1.31750173,189.73,189.61,0.96827194]
[1739715969199,5.2707,189.7,189.63,5.2725]
[1739715969399,0.03518489,189.69,189.65,0.03672888]
[1739715970101,5.30638489,189.69,189.65,0.03672888]
[1739715970401,0.03518489,189.69,189.65,0.03672888]
[1739715970597,3.73008011,189.68,189.65,0.03672888]
[1739715971198,109.58,189.67,189.51,3.2539]
[1739715971397,5.272,189.65,189.57,5.2741]
[1739715971700,1.5977,189.66,189.57,5.2741]
[1739715972399,0.03984666,189.63,189.57,5.2741]
[1739715972599,0.03984666,189.63,189.52,1.6672]
[1739715972801,0.03984666,189.63,189.53,0.96868368]
[1739715974300,0.03984666,189.63,189.56,5.2743]
[1739715974501,0.03984666,189.63,189.52,1.6672]
[1739715974697,0.03984666,189.63,189.53,0.96868136]
[1739715975001,0.03984666,189.63,189.58,5.2739]
[1739715975198,0.03984666,189.63,189.52,1.6672]
[1739715975403,0.03984666,189.63,189.53,0.9686857]
[1739715975605,0.03984666,189.63,189.54,0.96868509]
[1739715975801,0.03984666,189.63,189.55,0.96868509]
[1739715976103,0.03984666,189.63,189.52,1.6672]
[1739715976304,0.03984666,189.63,189.6,5.2732]
[1739715976696,0.03984666,189.63,189.52,1.6672]
[1739715976898,0.03984666,189.63,189.59,5.2735]
[1739715977605,0.03984666,189.63,189.52,1.6672]
[1739715977807,0.03984666,189.63,189.53,0.96855098]
[1739715978008,0.03984666,189.63,189.6,5.2734]
[1739715980110,0.03984666,189.63,189.52,1.6672]
[1739715980310,0.03984666,189.63,189.53,0.9685927]
[1739715982214,0.03984666,189.63,189.52,1.6672]
[1739715982405,0.03984666,189.63,189.54,2.12]
[1739715982810,0.03984666,189.63,189.55,0.9686503]
[1739715983011,0.03984666,189.63,189.54,2.12]
[1739715983509,0.03984666,189.63,189.55,0.96870777]
[1739715983904,0.03984666,189.63,189.56,0.96857419]
[1739715984110,0.03984666,189.63,189.57,0.96857419]
[1739715984413,0.03984666,189.63,189.59,5.2735]
[1739715984805,0.03984666,189.63,189.54,2.12]
[1739715985011,0.03984666,189.63,189.6,5.2734]
[1739715985806,0.03984666,189.63,189.61,5.2731]
[1739715987213,0.03984666,189.63,189.62,5.2729]
[1739715987714,4.666e-05,189.63,189.62,5.2729]
[1739715987910,109.58,189.67,189.65,5.2718]
[1739715988113,88.12362215,189.75,189.65,5.2718]
[1739715988517,5.2697,189.74,189.65,5.2718]
[1739715988720,5.2697,189.74,189.66,5.2717]
[1739715988918,0.03837022,189.7,189.67,0.0367192]
[1739715989415,0.03837022,189.7,189.68,5.2711]
[1739715989619,0.03837022,189.7,189.67,0.0367192]
[1739715990014,0.03837022,189.7,189.68,5.271]
[1739715994221,0.03837022,189.7,189.67,0.0367192]
[1739715994423,0.03837022,189.7,189.69,5.2709]
[1739715998726,0.03837022,189.7,189.67,0.0367192]
[1739716000524,1.31780421,189.69,189.67,0.0367192]
[1739716000828,5.2712,189.69,189.67,0.0367192]
[1739716001023,0.03837022,189.7,189.6,21.09]
[1739716002127,0.03837022,189.7,189.67,5.2714]
[1739716003223,0.03837022,189.7,189.61,0.18631]
[1739716003526,0.03837022,189.7,189.62,0.9683728]
[1739716004028,0.03837022,189.7,189.63,1.6703]
[1739716004224,0.03837022,189.7,189.64,2.57038769]
[1739716004423,0.03837022,189.7,189.64,1.6021]
[1739716004624,0.03837022,189.7,189.66,5.2716]
[1739716004826,0.03837022,189.7,189.64,1.6021]
[1739716005130,0.03837022,189.7,189.68,5.271]
[1739716006230,0.03837022,189.7,189.68,9.481]
[1739716006527,0.03837022,189.7,189.68,4.21]
[1739716008430,0.03837022,189.7,189.68,9.4812]
[1739716009131,0.03837022,189.7,189.68,4.21]
[1739716009922,0.03837022,189.7,189.68,9.481]
[1739716010229,0.03837022,189.7,189.68,4.21]
[1739716011930,0.03837022,189.7,189.68,9.481]
[1739716012332,0.03837022,189.7,189.68,4.21]
[1739716012632,0.03837022,189.7,189.69,13.32]
[1739716013332,0.03837022,189.7,189.69,18.5909]
[1739716013634,0.03837022,189.7,189.69,13.32]
[1739716014631,0.03837022,189.7,189.69,18.5909]
[1739716016030,0.03837022,189.7,189.69,13.32]
[1739716016733,0.03837022,189.7,189.69,18.5909]
[1739716017033,0.03837022,189.7,189.69,13.32]
[1739716019235,0.03837022,189.7,189.69,18.5909]
[1739716020035,0.03837022,189.7,189.69,39.6709]
[1739716022128,84.94622215,189.74,189.73,5.2698]
[1739716022837,84.94622215,189.74,189.69,34.4]
[1739716023040,84.94622215,189.74,189.72,5.2701]
[1739716023639,0.03651717,189.75,189.72,5.2701]
[1739716025440,0.03651717,189.75,189.73,5.2698]
[1739716027144,0.03651717,189.75,189.71,0.03557383]
[1739716028141,0.03651717,189.75,189.72,21.08]
[1739716028945,3.71750755,189.74,189.73,5.2696]
[1739716029837,3.71750755,189.74,189.73,18.5796]
[1739716030845,0.03651717,189.75,189.73,18.5796]
[1739716031746,0.03651717,189.75,189.73,22.7896]
[1739716031946,0.03651717,189.75,189.74,5.2695]
[1739716036448,1.6307,189.79,189.75,21.04348283]
[1739716036748,1.31709945,189.78,189.75,26.31268283]
[1739716036942,1.31709945,189.77,189.75,26.31268283]
[1739716037147,3.71526429,189.78,189.75,26.31268283]
[1739716037350,5.03235528,189.77,189.73,26.9995]
[1739716037646,1.31709099,189.76,189.75,0.03824342]
[1739716037846,5.03235528,189.76,189.75,0.03824342]
[1739716038653,3.71526429,189.76,189.75,0.03824342]
[1739716039149,0.0382102,189.78,189.75,0.03824342]
[1739716039752,5.03051809,189.77,189.75,0.03824342]
[1739716039952,3.71342154,189.77,189.75,0.03824342]
[1739716040349,0.0382102,189.78,189.75,0.03824342]
[1739716040651,1.31708976,189.77,189.75,0.03824342]
[1739716040952,0.0382102,189.78,189.75,0.03824342]
[1739716041154,1.31709617,189.77,189.75,0.03824342]
[1739716041452,0.0382102,189.78,189.75,0.03824342]
[1739716041753,5.03023926,189.77,189.75,0.03824342]
[1739716041954,3.71314309,189.77,189.75,0.03824342]
[1739716042453,0.0382102,189.78,189.75,0.03824342]
[1739716042754,1.31709038,189.77,189.75,0.03824342]
[1739716042952,0.0382102,189.78,189.75,0.03824342]
[1739716043152,1.31708957,189.77,189.75,0.03824342]
[1739716043351,0.0382102,189.78,189.75,0.03824342]
[1739716043553,5.03064048,189.77,189.75,0.03824342]
[1739716043753,3.71355091,189.77,189.76,2.12]
[1739716044054,3.71355091,189.77,189.76,7.389]
[1739716044251,0.0382102,189.78,189.76,7.389]
[1739716044652,0.0382102,189.78,189.76,6.33]
[1739716045953,0.0382102,189.78,189.76,11.599]
[1739716047452,0.0382102,189.78,189.77,5.2687]
[1739716048061,0.0382102,189.78,189.76,10.54]
[1739716051660,0.0382102,189.78,189.76,15.809]
[1739716052261,0.0382102,189.78,189.77,5.2687]
[1739716079787,107.83001351,189.84,189.78,21.0317898]
[1739716080087,5.03274961,189.83,189.78,21.0317898]
[1739716080288,3.71606096,189.83,189.78,21.0317898]
[1739716080684,3.71606096,189.82,189.78,21.0317898]
[1739716080885,3.71606096,189.82,189.74,4.6653]
[1739716081087,3.75425423,189.82,189.78,0.04026631]
[1739716081289,0.03819327,189.82,189.78,0.04026631]
[1739716081587,0.03819327,189.82,189.78,5.30846631]
[1739716082586,0.03819327,189.82,189.78,0.04026631]
[1739716082786,1.31685474,189.81,189.78,0.04026631]
[1739716082987,6.58485474,189.8,189.78,0.04026631]
[1739716083187,1.31685474,189.79,189.78,0.04026631]
[1739716083386,5.0364717,189.79,189.78,0.04026631]
[1739716084983,5.03662147,189.79,189.78,0.04026631]
[1739716085389,112.88950751,189.79,189.78,0.04026631]
[1739716085591,118.15770751,189.79,189.78,0.04026631]
[1739716086593,112.88950751,189.79,189.78,0.04026631]
[1739716087194,27.94328536,189.79,189.78,0.04026631]
[1739716087694,33.21148536,189.79,189.78,0.04026631]
[1739716088095,19.93148536,189.79,189.78,0.04026631]
[1739716089293,5.269,189.76,189.75,10.54]
[1739716089494,5.269,189.76,189.75,4.26152978]
[1739716090792,5.30441671,189.77,189.75,4.26152978]
[1739716091298,0.03561671,189.77,189.75,4.26152978]
[1739716091997,5.269,189.76,189.75,4.26152978]
[1739716092297,142.7559299,189.77,189.75,4.26152978]
[1739716092692,5.269,189.76,189.75,4.26152978]
[1739716093398,0.03561671,189.77,189.75,4.26152978]
[1739716093991,86.22401666,189.78,189.77,5.2687]
[1739716094197,52.05451666,189.78,189.77,5.2687]
[1739716094398,55.12468384,189.95,189.77,244.0]
[1739716094595,55.12468384,189.95,189.82,5.2673]
[1739716094898,58.31658384,189.95,189.82,5.2673]
[1739716095401,30.33571283,189.84,189.83,5.267]
[1739716095599,0.03758665,189.84,189.83,123.487]
[1739716095795,0.03758665,189.84,189.83,118.22]
[1739716096501,0.03758665,189.84,189.83,123.487]
[1739716097402,8.665e-05,189.84,189.83,123.487]
[1739716097694,8.665e-05,189.84,189.83,129.59648518]
[1739716098991,109.58,190.02,189.83,124.32948518]
[1739716099195,109.58,190.01,189.83,124.32948518]
[1739716099396,5.2629,189.99,189.83,124.32948518]
[1739716099600,109.58,190.01,189.83,124.32948518]
[1739716099903,5.2629,189.98,189.83,211.7300123]
[1739716100099,0.03648549,189.94,189.9,0.03440523]
[1739716101600,0.03648549,189.94,189.9,4.24440523]
[1739716104204,0.03648549,189.94,189.9,9.50920523]
[1739716105504,0.03648549,189.94,189.91,5.2648]
[1739716106506,0.03648549,189.94,189.9,4.24440523]
[1739716107906,0.03648549,189.94,189.91,2.12]
[1739716108410,109.58,190.01,189.93,58.20260371]
[1739716108603,4.8486,190.03,189.93,58.20260371]
[1739716108904,4.8486,190.03,189.94,5.2637]
[1739716109310,4.8486,190.03,189.95,5.2637]
[1739716109805,0.0361066,190.01,189.97,0.03764466]
[1739716111308,0.0361066,190.01,189.98,21.05]
[1739716113609,0.0361066,190.01,189.98,28.4228]
[1739716113913,0.0361066,190.01,189.98,23.16]
[1739716114414,0.0361066,190.01,189.98,28.4228]
[1739716114709,0.0361066,190.01,189.98,23.16]
[1739716117412,0.0361066,190.01,189.98,28.4228]
[1739716117615,0.0361066,190.01,189.98,23.16]
[1739716117913,0.0361066,190.01,189.98,27.37]
[1739716119816,0.0361066,190.01,189.99,5.2626]
[1739716120516,0.0361066,190.01,189.98,32.6329]
[1739716121112,0.0361066,190.01,189.99,5.2626]
[1739716122118,0.0361066,190.01,189.98,11.5828]
[1739716122317,0.0361066,190.01,189.98,6.32]
[1739716122517,0.0361066,190.01,189.98,27.37]
[1739716124423,5.2984066,190.01,189.98,27.37]
[1739716124626,0.0361066,190.01,189.98,27.37]
[1739716124821,5.2984066,190.01,189.98,27.37]
[1739716125024,0.0361066,190.01,189.98,27.37]
[1739716125520,5.2982066,190.01,189.98,27.37]
[1739716126825,0.0361066,190.01,189.98,27.37]
[1739716127027,5.2623,190.0,189.98,27.37]
[1739716127224,0.0361066,190.01,189.98,27.37]
[1739716129727,0.0361066,190.01,190.0,5.2623]
[1739716130330,344.0361066,190.01,189.98,11.5828]
[1739716131226,344.0361066,190.01,189.98,6.32]
[1739716131429,344.0361066,190.01,189.98,27.37]
[1739716132631,344.0361066,190.01,189.98,32.6327]
[1739716132832,344.0361066,190.01,189.98,27.37]
[1739716133131,344.0361066,190.01,189.98,32.6328]
[1739716133731,344.0361066,190.01,189.98,27.37]
[1739716134624,344.0361066,190.01,189.98,32.6326]
[1739716134829,344.0361066,190.01,189.98,27.37]
[1739716136340,344.0361066,190.01,190.0,5.2623]
[1739716141544,322.9861066,190.01,190.0,5.2623]
[1739716142447,322.9861066,190.01,189.99,8.44]
[1739716144044,322.9861066,190.01,190.0,5.2623]
[1739716144849,322.9861066,190.01,189.99,13.7024]
[1739716145045,301.9861066,190.01,189.99,8.44]
[1739716145645,301.9861066,190.01,189.99,13.7026]
[1739716145848,301.9861066,190.01,189.99,8.44]
[1739716147143,301.9861066,190.01,189.99,13.7024]
[1739716147348,301.9861066,190.01,189.99,8.44]
[1739716149153,301.9861066,190.01,189.99,13.7024]
[1739716149854,301.9861066,190.01,190.0,5.2623]
[1739716153051,301.9861066,190.01,189.99,8.44]
[1739716153255,301.9861066,190.01,189.99,13.7026]
[1739716154153,301.9861066,190.01,189.99,8.44]
[1739716155053,301.9861066,190.01,190.0,5.2623]
[1739716155452,301.9861066,190.01,189.99,8.44]
[1739716155848,301.9861066,190.01,189.99,13.7026]
[1739716157359,301.9861066,190.01,190.0,5.2623]
[1739716158358,301.9861066,190.01,189.99,8.44]
[1739716159862,301.9861066,190.01,189.99,13.7024]
[1739716160260,301.9861066,190.01,189.99,8.44]
[1739716160558,301.9861066,190.01,190.0,5.2623]
[1739716161652,301.9861066,190.01,189.99,8.44]
[1739716161854,301.9861066,190.01,189.99,13.7025]
[1739716162055,301.9861066,190.01,189.99,8.44]
[1739716162257,301.9861066,190.01,189.99,13.7025]
[1739716162656,301.9861066,190.01,189.99,8.44]
[1739716162860,301.9861066,190.01,190.0,5.2623]
[1739716165966,412.66754407,190.01,190.0,5.2623]
[1739716169163,412.66754407,190.01,189.99,8.44]
[1739716169567,412.66754407,190.01,189.99,5.893]
[1739716169764,412.66754407,190.01,189.99,2.11]
[1739716171468,278.37093716,190.0,189.99,2.11]
[1739716171669,278.37093716,190.0,189.99,7.3726]
[1739716171969,278.37093716,190.0,189.99,5.2626]
[1739716173068,203.22667563,190.0,189.99,5.2626]
[1739716175270,111.90442636,190.0,189.99,5.2626]
[1739716181874,90.85442636,190.0,189.99,5.2626]
[1739716184174,388.76597375,190.01,190.0,5.2623]
[1739716185477,388.76597375,190.01,189.98,2.11]
[1739716185976,388.76597375,190.01,189.99,5.2626]
[1739716186676,388.76597375,190.01,190.0,5.2623]
[1739716187276,301.9861066,190.01,190.0,5.2623]
[1739716187882,301.9861066,190.01,189.99,5.2626]
[1739716188378,301.9861066,190.01,189.98,2.11]
[1739716188576,301.9861066,190.01,190.0,5.2623]
[1739716189479,388.76597375,190.01,190.0,5.2623]
[1739716190380,388.76597375,190.01,189.99,5.2626]
[1739716190680,388.76597375,190.01,189.98,2.11]
[1739716190981,388.76597375,190.01,190.0,5.2623]
[1739716191373,301.9861066,190.01,190.0,5.2623]
[1739716202092,301.9861066,190.01,189.99,2.11]
[1739716203484,301.9861066,190.01,190.0,5.2623]
[1739716206785,283.9588066,190.01,190.0,5.2623]
[1739716206987,283.9588066,190.01,190.0,6.22868537]
[1739716210593,265.9588066,190.01,190.0,6.22868537]
[1739716211392,265.9588066,190.01,190.0,6.2287176]
[1739716216397,265.9588066,190.01,190.0,6.22867118]
[1739716218106,265.9588066,190.01,190.0,6.22866543]
[1739716220405,265.9588066,190.01,189.99,6.32]
[1739716222700,265.9588066,190.01,189.97,0.03764466]
[1739716222908,265.9588066,190.01,189.96,118.04]
[1739716223109,265.9588066,190.01,189.98,18.43]
[1739716224004,265.9588066,190.01,189.98,18.46396999]
[1739716224714,111.28936048,190.0,189.98,18.46396999]
[1739716226405,86.77986715,190.0,189.98,18.46396999]
[1739716227708,86.77986715,190.0,189.98,15.91636999]
[1739716227913,1.5411,189.99,189.98,0.03396999]
[1739716228115,3.1961,189.99,189.98,0.03396999]
[1739716228909,3.1961,189.99,189.97,4.21]
[1739716229814,111.24445657,189.98,189.97,4.21]
[1739716230015,111.24445657,189.98,189.97,1.6622]
[1739716230712,116.50735657,189.98,189.97,1.6622]
[1739716231611,111.24445657,189.98,189.88,67.05149616]
[1739716231815,111.24445657,189.98,189.85,131.4]
[1739716232005,109.58,189.97,189.85,131.4]
[1739716232806,0.03833049,189.93,189.89,0.03979464]
[1739716233012,5.2646,189.92,189.85,20.3864]
[1739716233209,1.5524,189.91,189.85,7.0464]
[1739716233416,1.5524,189.91,189.85,1.78]
[1739716234119,1.5524,189.91,189.86,0.0365846]
[1739716236819,6.8173,189.91,189.86,0.0365846]
[1739716237215,1.5524,189.91,189.86,0.0365846]
[1739716238019,5.2655,189.89,189.86,0.0365846]
[1739716238221,1.5322,189.9,189.86,0.0365846]
[1739716239220,1.5322,189.9,189.87,5.2657]
[1739716241023,1.5322,189.9,189.86,0.0365846]
[1739716241224,1.5322,189.9,189.88,5.2656]
[1739716241821,1.5322,189.9,189.87,5.2658]
[1739716245730,1.5322,189.9,189.86,5.3026846]
[1739716246230,6.7973,189.9,189.86,0.0365846]
[1739716248029,1.5322,189.9,189.86,0.0365846]
[1739716249228,1.5322,189.9,189.86,5.3026846]
[1739716249436,1.5322,189.9,189.86,0.0365846]
[1739716252730,0.03833049,189.93,189.86,0.0365846]
[1739716253933,0.03833049,189.93,189.87,13.32]
[1739716254735,5.265,189.91,189.87,13.32]
[1739716256738,86.77986715,189.91,189.87,13.32]
[1739716257638,24.35596609,189.9,189.87,13.32]
[1739716259136,86.77986715,189.9,189.87,13.32]
[1739716260136,24.39163142,189.89,189.87,13.32]
[1739716260337,24.39163142,189.89,189.87,18.5859]
[1739716260733,24.39163142,189.89,189.87,13.32]
[1739716261242,86.77986715,189.89,189.87,13.32]
[1739716262243,24.41914566,189.88,189.87,18.5858]
[1739716262445,24.41914566,189.88,189.87,13.32]
[1739716262640,24.41914566,189.88,189.86,0.0365846]
[1739716263644,86.81527076,189.89,189.86,0.0365846]
[1739716263941,86.81527076,189.89,189.87,13.31]
[1739716264148,86.81527076,189.89,189.87,15.08]
[1739716264645,86.77986715,189.88,189.87,15.08]
[1739716265841,201.74847403,189.88,189.87,15.08]
[1739716268148,280.93125708,189.88,189.87,15.08]
[1739716268348,275.66555708,189.88,189.8,1.5371]
[1739716269348,541.62436368,189.88,189.8,1.5371]
[1739716269547,541.62436368,189.88,189.82,0.0336926]
[1739716270249,86.71962838,189.83,189.82,0.0336926]
[1739716270848,86.71962838,189.83,189.79,118.14]
[1739716271845,91.98692838,189.83,189.79,118.14]
[1739716272151,91.98692838,189.83,189.76,5.2689]
[1739716272351,86.71962838,189.83,189.74,1.5324]
[1739716272547,86.71962838,189.83,189.77,5.2684]
[1739716272743,86.71962838,189.83,189.74,1.5324]
[1739716272744,86.71962838,189.81,189.74,1.5324]
[1739716273052,86.71962838,189.81,189.77,5.2686]
[1739716273245,0.03792812,189.79,189.77,5.2686]
[1739716273449,0.03792812,189.79,189.74,1.5324]